bitfinex/quotes_ETHUSD_20240730
["timestamp","ask_amount","ask_price","bid_price","bid_amount"]
[1722336655533,2.98678,3348.1,3347.5,2.98723]
[1722336655687,2.98669,3348.2,3347.6,2.98715]
[1722336656065,2.98669,3348.2,3347.7,2.98711]
[1722336656266,0.298669,3348.1,3347.7,2.98711]
[1722336656491,0.298669,3348.1,3347.8,2.98702]
[1722336656920,2.682669,3348.1,3347.1,2.9876]
[1722336657066,2.98691,3348.0,3347.2,2.98755]
[1722336657265,2.98699,3347.9,3347.3,2.98743]
[1722336657522,0.83579,3347.8,3347.3,2.98743]
[1722336657870,3.82283,3347.8,3347.3,2.98743]
[1722336658213,0.83579,3347.8,3347.5,2.98725]
[1722336658518,2.98691,3348.0,3347.5,2.98725]
[1722336658868,2.98691,3348.0,3347.6,0.12938889]
[1722336659167,2.3062,3348.6,3347.7,2.98707]
[1722336659368,2.9865,3348.4,3347.9,2.9869]
[1722336659567,1.26457706,3348.3,3347.9,2.9869]
[1722336659768,1.26457706,3348.3,3347.7,2.98707]
[1722336660027,2.9867,3348.2,3348.0,0.12935965]
[1722336660175,2.98676,3348.1,3347.5,2.4592]
[1722336660517,2.9869,3348.0,3347.5,5.44646]
[1722336660680,0.59736,3347.9,3347.5,5.44646]
[1722336661397,0.59736,3347.9,3347.6,2.9872]
[1722336661572,0.59736,3347.9,3347.7,2.98712]
[1722336661770,1.26457706,3348.3,3347.7,2.98706]
[1722336661970,1.26457706,3348.3,3347.9,2.98686]
[1722336662167,5.36655586,3348.8,3348.2,2.98667]
[1722336662410,2.98623,3348.7,3348.2,2.98667]
[1722336662615,2.98608,3348.9,3348.3,5.97311]
[1722336662819,2.4211,3349.2,3348.2,2.4957]
[1722336662991,2.4211,3349.2,3348.2,5.48237]
[1722336662992,2.98619,3348.8,3348.2,5.48237]
[1722336663315,2.98624,3348.7,3348.2,5.48237]
[1722336663876,2.98641,3348.5,3348.0,2.98685]
[1722336664173,2.98641,3348.5,3347.8,2.987]
[1722336664174,2.98647,3348.5,3347.8,2.98698]
[1722336664518,2.98663,3348.3,3347.8,2.98698]
[1722336664730,5.97329,3348.3,3347.8,2.98698]
[1722336665031,5.97329,3348.3,3347.9,0.12935965]
[1722336665316,2.98668,3348.2,3347.9,0.12935965]
[1722336665711,3.285147,3348.4,3347.8,2.98698]
[1722336665910,0.8682487,3348.3,3348.0,0.12935965]
[1722336666114,0.8682487,3348.3,3347.9,2.98694]
[1722336666318,0.8682487,3348.3,3348.1,0.12935965]
[1722336666617,0.8682487,3348.3,3348.2,0.12935965]
[1722336666910,2.98621,3348.8,3348.2,3.11597965]
[1722336667118,5.36655586,3348.9,3348.2,0.12935965]
[1722336667322,2.98637,3348.6,3348.2,0.12935965]
[1722336667489,2.98637,3348.6,3348.0,2.98677]
[1722336667694,0.597258,3348.5,3348.3,0.12925523]
[1722336667902,0.597258,3348.5,3347.8,2.98698]
[1722336668101,0.597258,3348.5,3348.4,0.12893782]
[1722336668295,2.9862,3348.8,3348.0,2.9868]
[1722336668495,2.98632,3348.6,3348.4,0.12893782]
[1722336668690,2.9862,3348.8,3348.2,2.98663]
[1722336668881,2.9862,3348.8,3348.5,0.12893782]
[1722336669077,2.98623,3348.7,3348.2,2.98663]
[1722336669385,3.583573,3348.6,3348.1,2.98676]
[1722336669611,0.597243,3348.6,3348.3,2.98658]
[1722336669798,2.9863,3348.7,3348.1,5.97344]
[1722336670302,2.98611,3348.9,3348.3,2.9865]
[1722336670527,2.98614,3348.8,3348.3,2.98658]
[1722336670696,5.97223,3348.9,3348.3,2.98652]
[1722336671031,2.98611,3348.9,3348.2,2.98667]
[1722336671198,2.98631,3348.7,3348.1,2.98672]
[1722336671398,3.284991,3348.6,3348.1,2.98672]
[1722336673485,0.298631,3348.6,3348.0,2.9868]
[1722336673686,2.98637,3348.6,3347.7,37.3512]
[1722336674507,2.98637,3348.6,3348.0,2.98678]
[1722336674887,2.98637,3348.6,3348.1,5.97344]
[1722336675114,2.98637,3348.6,3348.1,2.9867]
[1722336676292,5.4455,3348.8,3348.1,2.9867]
[1722336676601,0.84315,3348.7,3348.3,2.98658]
[1722336676807,2.986,3349.0,3348.5,2.9864]
[1722336677218,2.986,3349.0,3348.4,5.46179]
[1722336677423,2.98609,3348.9,3348.4,5.46179]
[1722336677934,2.98583,3349.2,3348.5,2.98641]
[1722336678118,5.36655586,3349.3,3348.9,2.986]
[1722336678295,0.83521859,3349.3,3348.8,2.98614]
[1722336678490,2.9857,3349.3,3348.8,2.98614]
[1722336678887,5.97112,3349.5,3348.9,2.98603]
[1722336679214,2.98527,3349.8,3348.7,2.98615]
[1722336679395,2.98588,3349.1,3348.6,2.98631]
[1722336679594,2.98553,3349.5,3348.5,2.98635]
[1722336679799,2.98597,3349.0,3348.5,2.98635]
[1722336680029,2.98584,3349.2,3348.6,2.98626]
[1722336680211,2.98584,3349.2,3348.7,2.98622]
[1722336680695,4.87339447,3350.0,3348.4,2.4753]
[1722336680696,4.54641206,3349.8,3349.3,2.98568]
[1722336680896,5.98513,3350.0,3349.4,2.9856]
[1722336680897,1.05315421,3349.7,3349.4,2.9856]
[1722336681341,1.05315421,3349.7,3349.5,0.12858711]
[1722336681950,1.05315421,3349.7,3349.4,2.9856]
[1722336682154,2.98516,3349.9,3349.6,0.12858711]
[1722336682296,2.98507,3350.0,3349.5,2.98551]
[1722336682513,2.98507,3350.0,3349.7,0.12858711]
[1722336682692,0.527287,3349.9,3349.6,0.1284285]
[1722336682892,0.527287,3349.9,3349.5,2.98551]
[1722336683433,0.527287,3349.9,3349.6,3.1138285]
[1722336683597,2.98489,3350.2,3349.7,2.98533]
[1722336683912,3.0086957,3350.3,3349.1,5.39395]
[1722336683913,2.98507,3350.0,3349.4,2.98556]
[1722336684116,2.98516,3349.9,3349.8,0.12834087]
[1722336684291,3.582171,3349.9,3349.8,0.12834087]
[1722336684497,3.582171,3349.9,3349.4,2.98556]
[1722336684736,3.582171,3349.9,3349.8,0.12834087]
[1722336685031,0.597011,3349.9,3349.5,2.98551]
[1722336685242,2.98507,3350.0,3349.8,0.12834087]
[1722336685449,2.98507,3350.0,3349.3,2.98569]
[1722336685751,2.98575,3349.3,3348.8,2.98609]
[1722336685952,0.59713,3349.2,3348.8,5.97216]
[1722336686260,0.59713,3349.2,3348.6,5.25226]
[1722336686261,2.98583,3349.2,3348.6,5.25226]
[1722336686810,2.98583,3349.2,3348.6,2.266]
[1722336687016,2.98596,3349.0,3348.4,2.98643]
[1722336687228,2.9858,3349.2,3348.2,5.25264]
[1722336687450,2.98631,3348.7,3348.2,5.25264]
[1722336690755,3.2845,3349.1,3348.2,5.25262]
[1722336690962,1.56100186,3349.2,3348.6,2.98627]
[1722336691163,2.98572,3349.3,3348.6,2.98627]
[1722336691473,2.98579,3349.2,3348.8,2.98613]
[1722336692563,2.98579,3349.2,3348.6,2.98624]
[1722336692766,2.98592,3349.1,3348.6,2.98624]
[1722336693180,2.98592,3349.1,3348.2,2.5656]
[1722336693181,0.45469219,3349.1,3348.2,5.25263]
[1722336693365,2.98627,3348.7,3348.2,5.25267]
[1722336693534,4.54877736,3349.0,3348.2,5.25267]
[1722336693535,2.98614,3348.8,3348.2,5.25267]
[1722336694042,1.56275736,3349.0,3348.2,2.266]
[1722336694043,2.98623,3348.7,3348.2,2.266]
[1722336694243,2.98623,3348.7,3347.9,2.98694]
[1722336694244,2.9865,3348.4,3347.9,2.98694]
[1722336694444,2.98646,3348.5,3347.9,2.98686]
[1722336695065,2.98646,3348.5,3348.0,0.12426564]
[1722336695263,2.98632,3348.6,3348.1,2.98669]
[1722336695769,2.98632,3348.6,3348.2,0.12426564]
[1722336695975,2.98641,3348.5,3348.2,0.12426564]
[1722336696336,2.98641,3348.5,3348.0,2.98685]
[1722336696533,2.98641,3348.5,3348.3,0.12426564]
[1722336696747,2.98641,3348.5,3347.9,2.98694]
[1722336697033,2.98641,3348.5,3347.7,8.36067]
[1722336697034,2.98661,3348.3,3347.7,11.34773]
[1722336697241,2.9865,3348.4,3348.0,0.12426564]
[1722336697437,2.9865,3348.4,3347.9,2.98688]
[1722336697673,2.9865,3348.4,3348.1,0.12426564]
[1722336697873,4.55029598,3348.7,3348.2,2.98662]
[1722336698048,1.56406598,3348.7,3348.3,2.9865]
[1722336698249,4.55024598,3348.8,3348.3,3.11092847]
[1722336698683,2.98627,3348.7,3348.3,0.12442847]
[1722336698985,2.98642,3348.5,3348.1,2.98676]
[1722336699178,2.98642,3348.5,3348.4,0.12442847]
[1722336699676,2.9865,3348.4,3348.0,2.98685]
[1722336700037,0.7536516,3348.7,3348.1,2.98671]
[1722336700038,5.30415852,3348.7,3348.1,2.98671]
[1722336700351,2.98633,3348.6,3347.8,2.98697]
[1722336700547,2.98662,3348.3,3347.7,2.3736]
[1722336700748,2.98675,3348.2,3347.7,2.3736]
[1722336701037,1.56420692,3348.3,3347.7,2.3736]
[1722336701038,2.98677,3348.1,3347.7,2.3736]
[1722336702378,4.55081692,3348.3,3347.8,2.98699]
[1722336703185,1.56447618,3348.5,3348.1,2.98672]
[1722336703338,1.56447618,3348.5,3348.3,2.98654]
[1722336703541,1.56447618,3348.7,3348.5,2.98641]
[1722336703750,1.56447618,3348.9,3348.5,2.98641]
[1722336703980,2.98627,3348.7,3348.2,5.46221]
[1722336704206,2.98627,3348.7,3347.8,3.2996]
[1722336704207,2.98651,3348.4,3347.9,2.4427]
[1722336704388,2.98651,3348.4,3348.0,2.98685]
[1722336704389,0.597283,3348.4,3348.0,2.98685]
[1722336704703,2.98633,3348.6,3348.0,2.98678]
[1722336704888,1.56447618,3348.6,3348.0,2.98678]
[1722336705219,1.56447618,3348.6,3347.9,2.4427]
[1722336705220,2.9865,3348.4,3347.9,2.9869]
[1722336705508,1.56447618,3348.5,3348.0,2.98678]
[1722336705811,4.55088618,3348.5,3348.0,2.98678]
[1722336706517,4.55088618,3348.5,3347.8,2.98699]
[1722336706518,2.98661,3348.3,3347.8,2.98699]
[1722336706808,2.50671052,3348.5,3347.7,2.98706]
[1722336706809,2.98672,3348.2,3347.7,2.98706]
[1722336707008,2.98658,3348.4,3347.4,2.98733]
[1722336707009,2.98676,3348.1,3347.4,2.98733]
[1722336707365,1.56530664,3348.0,3347.6,2.98717]
[1722336707574,1.56530664,3348.3,3347.9,2.98689]
[1722336708154,1.56530664,3348.2,3347.9,2.98689]
[1722336708268,1.56530664,3348.4,3348.0,5.25552]
[1722336708634,5.66797056,3348.7,3348.4,2.9865]
[1722336708635,2.36863923,3348.7,3348.4,2.9865]
[1722336708916,2.36863923,3348.7,3348.2,2.98661]
[1722336708917,1.56530664,3348.8,3348.3,0.0597294]
[1722336709079,2.98601,3349.0,3348.5,2.98635]
[1722336709080,1.56530664,3348.9,3348.5,2.98635]
[1722336709611,1.87836797,3349.2,3348.6,2.98632]
[1722336709612,1.56510688,3348.8,3348.6,2.98632]
[1722336709817,1.56510688,3348.9,3348.5,2.98635]
[1722336709968,4.55122688,3348.9,3348.3,2.98654]
[1722336710166,2.98612,3348.9,3348.6,0.12465814]
[1722336710366,2.98612,3348.9,3348.4,2.98645]
[1722336710567,4.55122688,3348.9,3348.7,0.12465814]
[1722336710861,2.98626,3348.7,3348.1,2.9867]
[1722336711066,2.98624,3348.7,3348.2,2.98667]
[1722336711303,2.98635,3348.6,3348.0,2.2687]
[1722336711626,1.56510688,3348.8,3348.4,2.98648]
[1722336711835,1.56510688,3348.7,3348.4,2.98648]
[1722336712285,1.56510688,3348.7,3348.4,5.97292]
[1722336712639,1.56510688,3348.8,3348.4,2.98647]
[1722336713128,1.56537114,3348.8,3348.4,2.98644]
[1722336713344,1.56537114,3348.8,3348.6,2.98631]
[1722336713493,1.56537114,3348.9,3348.7,2.98623]
[1722336713688,1.56537114,3348.9,3348.6,2.98631]
[1722336713889,1.56537114,3348.9,3348.5,2.9864]
[1722336714089,1.56537114,3348.9,3348.6,2.98631]
[1722336714329,1.56537114,3349.0,3348.6,2.98631]
[1722336714543,1.56537114,3348.9,3348.6,2.98631]
[1722336715286,4.55142114,3348.9,3348.2,2.98661]
[1722336715744,4.55142114,3348.9,3348.0,2.2687]
[1722336715745,4.55142114,3348.9,3348.4,2.98645]
[1722336716030,4.55142114,3348.9,3348.1,2.98675]
[1722336716031,5.49304479,3348.9,3348.1,2.98675]
[1722336716190,2.98629,3348.7,3348.2,2.98663]
[1722336716391,4.55185273,3348.7,3348.2,2.98663]
[1722336716798,2.98638,3348.6,3348.0,5.2555]
[1722336717002,2.98645,3348.5,3348.0,5.2555]
[1722336718215,2.9865,3348.4,3347.9,2.98694]
[1722336718420,2.98659,3348.3,3347.8,2.98702]
[1722336719705,4.55239503,3348.3,3347.8,2.98702]
[1722336719937,2.98659,3348.3,3347.8,2.98699]
[1722336720208,2.98659,3348.3,3347.9,2.98693]
[1722336720947,2.31965885,3348.4,3347.9,2.98693]
[1722336721243,5.30617885,3348.4,3347.9,2.98692]
[1722336721434,4.55243503,3348.3,3347.8,2.98702]
[1722336722009,2.98668,3348.2,3347.7,5.40902]
[1722336722321,2.98668,3348.2,3347.6,2.98713]
[1722336722541,4.55246879,3348.2,3347.6,2.98713]
[1722336722864,1.56578879,3348.1,3347.7,2.98708]
[1722336723163,4.55246879,3348.2,3347.7,3.09541669]
[1722336724162,2.98696,3347.9,3347.7,0.10833669]
[1722336724454,2.98696,3347.9,3347.4,5.97464]
[1722336724610,2.98686,3348.0,3347.8,0.10459634]
[1722336724948,2.98686,3348.0,3347.5,2.98725]
[1722336725111,2.98686,3348.0,3347.9,0.10459634]
[1722336725310,2.98686,3348.0,3347.5,2.98725]
[1722336725611,2.98686,3348.0,3347.6,2.9872]
[1722336725845,2.98676,3348.1,3347.6,2.9872]
[1722336726144,5.84474492,3348.2,3347.6,0.10459634]
[1722336726145,1.56544557,3348.2,3347.6,0.10459634]
[1722336726344,2.98661,3348.3,3347.8,2.98697]
[1722336726345,4.55205557,3348.3,3347.8,2.98697]
[1722336726751,4.55215557,3348.2,3347.9,0.10459634]
[1722336726954,2.98681,3348.1,3347.9,0.10459634]
[1722336727159,2.98685,3348.0,3347.5,2.98729]
[1722336728173,5.97379,3348.0,3347.5,2.98729]
[1722336728676,1.56544557,3348.1,3347.5,2.98729]
[1722336728677,1.56544557,3348.1,3347.5,2.98728]
[1722336728977,4.55247324,3348.2,3347.7,5.97413]
[1722336729136,1.56579324,3348.1,3347.8,2.98702]
[1722336729336,1.56579324,3348.2,3347.9,2.98694]
[1722336730167,1.56579324,3348.1,3347.7,2.98711]
[1722336730670,1.56579324,3348.2,3348.0,2.98681]
[1722336730967,4.55230324,3348.4,3348.0,2.98684]
[1722336731168,1.56579324,3348.3,3348.0,2.98684]
[1722336732271,1.56738563,3348.3,3348.0,2.98684]
[1722336732432,0.76355905,3348.5,3347.7,2.98711]
[1722336732433,4.55410563,3348.2,3347.7,2.98711]
[1722336732633,1.56738563,3348.1,3347.7,2.98711]
[1722336733070,1.56738563,3348.1,3347.8,2.98701]
[1722336733771,1.56738563,3348.2,3348.0,2.98685]
[1722336733932,1.56738563,3348.2,3348.1,2.98676]
[1722336734131,1.56738563,3348.2,3348.0,37.98684]
[1722336734372,1.56738563,3348.2,3347.9,2.387]
[1722336734549,1.56738563,3348.1,3347.9,2.387]
[1722336734746,1.56738563,3348.1,3347.9,37.387]
[1722336735132,1.56738563,3348.2,3348.0,2.98681]
[1722336735335,2.98643,3348.5,3348.0,2.98681]
[1722336735537,1.56749363,3348.2,3348.0,2.98681]
[1722336736073,1.56755266,3348.2,3348.0,2.98681]
[1722336737080,1.56755266,3348.2,3348.0,2.9868]
[1722336737252,1.56760633,3348.2,3348.0,2.9868]
[1722336737448,1.56760633,3348.3,3348.2,2.98667]
[1722336737650,1.88110889,3348.7,3348.3,2.98659]
[1722336737839,1.56759068,3348.4,3348.3,2.98659]
[1722336738275,1.56759068,3348.4,3348.2,2.98666]
[1722336738592,2.98633,3348.6,3348.2,2.98666]
[1722336738900,2.03342979,3348.5,3348.1,2.98672]
[1722336739186,2.03342979,3348.5,3347.9,2.387]
[1722336739187,1.567816,3348.3,3348.2,5.9733]
[1722336739400,1.567816,3348.5,3348.4,2.9865]
[1722336739540,5.36655586,3348.9,3348.4,2.9865]
[1722336739541,1.567816,3348.6,3348.4,2.9865]
[1722336739743,1.567816,3348.7,3348.5,2.98636]
[1722336740176,5.36655586,3348.9,3348.6,0.10475501]
[1722336740392,0.15204638,3348.8,3348.6,0.10475501]
[1722336740580,5.18526763,3349.0,3348.6,0.10475501]
[1722336740877,1.56758239,3348.7,3348.6,0.10475501]
[1722336741924,2.98606,3348.9,3348.6,0.10475501]
[1722336742089,1.56742515,3348.7,3348.6,0.10475501]
[1722336742737,1.56742515,3348.7,3348.6,3.09107501]
[1722336742935,1.56742515,3348.8,3348.6,3.09107501]
[1722336743121,1.56742515,3348.7,3348.6,3.09107501]
[1722336743836,1.56742515,3348.8,3348.6,3.09107501]
[1722336744041,1.56742515,3348.7,3348.6,3.09107501]
[1722336744207,1.56742515,3348.8,3348.7,2.98623]
[1722336744415,1.56742515,3348.8,3348.6,3.09107501]
[1722336744739,1.56742515,3348.8,3348.4,2.3517]
[1722336744740,1.56742515,3348.8,3348.7,0.10475501]
[1722336744903,2.98609,3348.9,3348.7,0.10475501]
[1722336745110,2.98609,3348.9,3348.4,2.98644]
[1722336745310,2.98597,3349.0,3348.4,2.98644]
[1722336745537,1.56712474,3348.7,3348.6,2.98631]
[1722336745765,2.98597,3349.0,3348.6,2.98631]
[1722336745973,1.56707981,3348.7,3348.6,2.98631]
[1722336747750,1.56707981,3348.7,3348.6,5.97263]
[1722336748054,1.56707981,3348.9,3348.7,2.98623]
[1722336748220,1.56707981,3348.9,3348.8,2.98614]
[1722336748420,2.98581,3349.2,3348.8,2.98614]
[1722336748636,1.56693116,3349.0,3348.8,2.98614]
[1722336748835,1.56693116,3349.0,3348.6,2.3661]
[1722336749126,1.56693116,3349.0,3348.9,2.98605]
[1722336749788,1.56693116,3349.0,3348.7,2.98616]
[1722336750078,1.56693116,3348.8,3348.5,35.0]
[1722336750285,2.98641,3348.5,3347.9,2.98687]
[1722336750507,1.56693116,3348.5,3348.1,2.9867]
[1722336750653,1.56693116,3348.5,3348.1,2.98669]
[1722336750850,1.56693116,3348.5,3348.0,2.98679]
[1722336750851,4.55334116,3348.5,3348.0,2.98679]
[1722336751055,1.56693116,3348.5,3347.8,2.3878]
[1722336751351,1.56693116,3348.5,3348.2,2.9866]
[1722336751557,1.56693116,3348.6,3348.2,2.98664]
[1722336751863,2.98663,3348.3,3347.8,2.98699]
[1722336752048,1.56690376,3348.3,3347.8,2.98699]
[1722336752465,1.56690376,3348.2,3347.7,2.98709]
[1722336752651,1.56690376,3348.2,3347.8,2.98702]
[1722336753034,1.56690376,3348.1,3347.8,2.98702]
[1722336753299,1.56690376,3348.1,3347.5,5.34544]
[1722336753588,1.56690376,3348.1,3347.5,2.98724]
[1722336754081,1.56690376,3348.1,3347.7,2.98708]
[1722336754281,1.56690376,3348.1,3347.8,2.98702]
[1722336754436,1.56690376,3348.2,3347.9,2.98694]
[1722336754943,1.56690376,3348.2,3348.0,2.9868]
[1722336755173,1.56713334,3348.2,3348.0,0.10431666]
[1722336755688,1.56714674,3348.2,3348.0,0.10431666]
[1722336755895,1.56714674,3348.2,3348.1,2.98676]
[1722336756185,1.56714674,3348.2,3348.1,0.1046089]
[1722336756383,4.89858902,3348.2,3348.1,0.1046089]
[1722336756698,4.89858902,3348.2,3347.5,2.98729]
[1722336756699,2.98686,3348.0,3347.5,2.98729]
[1722336756852,1.56724527,3347.8,3347.2,2.98751]
[1722336757050,1.56724527,3347.8,3347.4,2.98738]
[1722336757253,2.4991,3348.1,3347.4,2.98738]
[1722336757456,1.56739614,3347.8,3347.7,2.98712]
[1722336757645,1.56739614,3348.1,3348.0,2.98685]
[1722336757998,1.56739614,3348.2,3348.0,2.98685]
[1722336758139,2.98643,3348.5,3348.0,2.98685]
[1722336758345,1.56694865,3348.3,3347.8,2.98695]
[1722336758544,1.56694865,3348.1,3347.8,2.98695]
[1722336759438,3.583716,3348.5,3347.9,2.98693]
[1722336759439,1.56694865,3348.2,3347.9,2.98693]
[1722336759765,1.56694865,3348.2,3347.7,2.4121]
[1722336759766,1.56694865,3348.2,3347.7,5.39916]
[1722336759967,1.56694865,3348.2,3347.9,2.98693]
[1722336761270,1.56694865,3348.1,3347.9,2.98693]
[1722336761503,1.56713686,3348.2,3347.9,5.97381]
[1722336761707,1.56713686,3348.2,3347.9,2.98688]
[1722336761708,1.56709303,3348.2,3347.9,2.98688]
[1722336762783,1.56709303,3348.1,3347.9,2.98688]
[1722336763172,1.56709303,3348.2,3347.9,2.98688]
[1722336763565,1.56709303,3348.1,3347.9,2.98688]
[1722336763767,1.56709303,3348.2,3347.9,2.98688]
[1722336764401,1.56709303,3348.2,3347.9,2.98693]
[1722336764784,2.98659,3348.3,3347.9,2.98693]
[1722336765002,1.56721817,3348.1,3347.9,2.98693]
[1722336765219,1.56721817,3348.1,3347.8,2.98703]
[1722336765402,4.55400343,3348.1,3347.5,37.98724]
[1722336765718,1.56719343,3348.0,3347.6,2.98717]
[1722336765910,1.56719343,3347.9,3347.6,2.98717]
[1722336767795,1.56719343,3347.9,3347.5,2.98724]
[1722336767796,1.56719343,3347.9,3347.7,2.98712]
[1722336768001,1.56719343,3348.0,3347.8,2.98699]
[1722336768188,1.56719343,3348.0,3347.5,2.98723]
[1722336768189,1.56718168,3348.0,3347.5,2.98723]
[1722336768391,1.56718168,3348.0,3347.6,2.98717]
[1722336769023,1.56718168,3348.0,3347.7,2.98708]
[1722336769318,1.56718168,3348.0,3347.7,2.98707]
[1722336769694,1.56718168,3348.0,3347.6,2.9872]
[1722336769901,4.55403168,3348.0,3347.6,2.9872]
[1722336770091,4.55415168,3347.9,3347.7,0.10487193]
[1722336770289,4.55415168,3347.9,3347.5,35.0]
[1722336770513,1.56718168,3347.8,3347.6,0.10487193]
[1722336770724,2.98697,3347.9,3347.5,2.98729]
[1722336770923,1.56721879,3347.8,3347.6,0.10487193]
[1722336771342,2.98712,3347.7,3347.6,0.10487193]
[1722336771515,4.55425188,3347.8,3347.6,0.10487193]
[1722336771703,1.56722188,3347.7,3347.3,37.98742]
[1722336771898,1.56722188,3347.7,3347.4,0.10503062]
[1722336772225,4.55434188,3347.7,3347.4,0.10503062]
[1722336772627,2.98725,3347.6,3347.4,0.10503062]
[1722336772827,4.55435188,3347.7,3347.4,0.10503062]
[1722336773030,2.98728,3347.6,3347.4,0.10503062]
[1722336773242,2.98728,3347.6,3347.1,2.98759]
[1722336773535,2.98728,3347.6,3347.2,37.98756]
[1722336773745,2.98728,3347.6,3347.3,0.10477168]
[1722336773895,7.54162188,3347.7,3347.3,0.10477168]
[1722336774094,7.54162188,3347.7,3347.2,37.98756]
[1722336774095,4.55441188,3347.7,3347.2,37.98756]
[1722336774399,1.56722188,3347.6,3347.3,0.10477168]
[1722336774749,4.55395384,3347.7,3347.2,37.98751]
[1722336774896,4.55395384,3347.7,3347.4,0.10501806]
[1722336774897,1.56676384,3347.6,3347.4,0.10501806]
[1722336775242,2.98719,3347.7,3347.2,2.98751]
[1722336775399,4.55395436,3347.7,3347.5,0.10501806]
[1722336775624,1.56676436,3347.7,3347.3,2.98747]
[1722336775825,2.98719,3347.7,3347.1,37.98758]
[1722336776039,1.56660206,3347.6,3347.1,37.98758]
[1722336776244,2.98722,3347.6,3347.2,0.1050473]
[1722336776579,2.9874,3347.4,3347.2,0.1050473]
[1722336776864,2.98748,3347.3,3347.2,0.1050473]
[1722336777065,2.98757,3347.2,3346.9,35.0]
[1722336777977,2.98757,3347.2,3346.7,2.98796]
[1722336778138,2.98757,3347.2,3346.8,2.98792]
[1722336778341,2.98748,3347.3,3346.8,37.98792]
[1722336780358,2.98739,3347.4,3346.9,2.98783]
[1722336780566,1.56621699,3347.6,3347.1,2.98761]
[1722336780775,1.56621699,3347.6,3347.0,2.98774]
[1722336780776,2.98731,3347.5,3347.0,2.98774]
[1722336780970,2.98731,3347.5,3347.1,2.98765]
[1722336781510,1.5653395,3347.7,3347.3,2.98742]
[1722336782007,1.5653395,3347.8,3347.3,2.98742]
[1722336782159,2.98713,3347.7,3347.2,5.23896]
[1722336782359,2.98713,3347.7,3347.3,2.98747]
[1722336783060,2.98713,3347.7,3347.2,5.23892]
[1722336783264,2.98722,3347.6,3347.1,2.98761]
[1722336783762,2.98713,3347.7,3347.2,2.98755]
[1722336785084,2.98713,3347.7,3347.3,0.1050473]
[1722336785274,2.98713,3347.7,3347.2,2.98755]
[1722336785474,2.98713,3347.7,3347.3,0.1050473]
[1722336785692,2.98713,3347.7,3347.2,35.0]
[1722336785693,2.98736,3347.5,3347.2,35.0]
[1722336785893,2.98743,3347.4,3347.3,0.1050473]
[1722336786127,2.98751,3347.3,3346.6,5.38419]
[1722336786282,2.98751,3347.3,3346.8,2.98791]
[1722336786478,0.75398279,3347.3,3346.7,35.0]
[1722336786684,2.57904732,3347.7,3346.2,3.0]
[1722336786685,2.9878,3347.0,3346.8,0.10514757]
[1722336786971,2.9878,3347.0,3346.5,2.98815]
[1722336787232,2.9878,3347.0,3346.9,0.10514757]
[1722336787425,2.9878,3347.0,3346.6,35.0]
[1722336787575,2.9878,3347.0,3346.3,5.30232]
[1722336787576,2.98775,3347.0,3346.9,0.10514757]
[1722336787908,2.98775,3347.0,3346.9,0.10536481]
[1722336788111,2.98775,3347.0,3346.5,37.98815]
[1722336788428,2.98775,3347.0,3346.6,0.10536481]
[1722336788986,2.98775,3347.0,3346.6,3.09346481]
[1722336789223,1.56497848,3347.3,3346.7,2.988]
[1722336789426,2.98752,3347.3,3346.8,2.98786]
[1722336789722,2.98762,3347.2,3346.7,2.988]
[1722336790138,2.98766,3347.1,3346.8,0.10539824]
[1722336791723,2.98783,3346.9,3346.8,0.10539824]
[1722336791948,2.98766,3347.1,3346.6,2.98807]
[1722336792139,2.98757,3347.2,3346.8,0.1054066]
[1722336792440,4.55214769,3347.3,3346.8,0.1054066]
[1722336792735,4.55202769,3347.4,3346.9,2.98778]
[1722336792933,4.55202769,3347.4,3347.0,0.10539824]
[1722336793086,2.9874,3347.4,3347.0,0.10539824]
[1722336793289,2.98757,3347.2,3347.0,0.10539824]
[1722336793521,2.98749,3347.3,3346.8,2.98791]
[1722336793840,2.98749,3347.3,3346.9,0.10539824]
[1722336793999,2.98749,3347.3,3346.9,3.09321824]
[1722336794335,4.55219436,3347.4,3346.9,3.09321824]
[1722336794996,5.87764375,3347.4,3346.9,0.10539824]
[1722336795432,2.98762,3347.2,3346.7,2.988]
[1722336795741,2.98766,3347.1,3346.7,2.988]
[1722336796040,2.98766,3347.1,3346.8,0.10539824]
[1722336797059,4.55323922,3347.3,3346.8,0.10539824]
[1722336797360,4.55323922,3347.3,3346.9,2.98782]
[1722336797705,1.56568922,3347.3,3347.0,0.10539824]
[1722336798313,1.56568922,3347.3,3347.1,2.98759]
[1722336798519,4.86605706,3347.6,3347.2,0.10556537]
[1722336798520,1.56568922,3347.4,3347.2,0.10556537]
[1722336798751,4.55299922,3347.5,3347.2,0.10556537]
[1722336799051,1.56568922,3347.6,3347.3,2.98744]
[1722336799248,4.55286922,3347.7,3347.2,0.10556537]
[1722336799454,2.98722,3347.6,3347.2,2.98756]
[1722336799629,2.98721,3347.6,3347.3,0.10556537]
[1722336799935,2.98721,3347.6,3347.2,2.98756]
[1722336800129,2.98721,3347.6,3347.3,0.10556537]
[1722336800347,2.98721,3347.6,3347.2,2.98756]
[1722336800577,2.98721,3347.6,3347.3,0.10556537]
[1722336800954,4.55281922,3347.7,3347.2,2.98756]
[1722336801271,1.56568922,3347.8,3347.6,2.98721]
[1722336801568,1.56568922,3347.9,3347.6,2.9872]
[1722336801768,1.56568922,3347.9,3347.7,0.10541078]
[1722336802013,1.56568922,3347.9,3347.4,5.31293]
[1722336802130,4.55266922,3347.9,3347.5,2.98729]
[1722336802327,1.56568922,3347.9,3347.5,5.97451]
[1722336802548,4.55263922,3347.9,3347.6,0.10541078]
[1722336803177,1.56568922,3347.9,3347.6,3.09261078]
[1722336803382,1.56606485,3347.9,3347.7,2.98711]
[1722336803527,1.56606485,3347.9,3347.7,2.98708]
[1722336803869,1.56598737,3348.0,3347.9,2.83736221]
[1722336804093,4.86573484,3348.4,3347.9,2.83736221]
[1722336804094,1.56598737,3348.2,3347.9,2.83736221]
[1722336804228,1.56598737,3348.2,3347.9,0.10532723]